fUST/lending_fUST_20260511
["ID","MTS","AMOUNT","RATE_DAILY","PERIOD"]
[422001435,1778441432000,-300.0,8.869e-05,2]
[422001424,1778441432000,-2777.34369611,8.696e-05,2]
[422001421,1778441432000,-300.0,8.695e-05,2]
[422001393,1778441432000,-5000.0,4.474e-05,2]
[422001395,1778441432000,-373.99806974,4.577e-05,2]
[422001397,1778441432000,-159.496814,4.657e-05,2]
[422001398,1778441432000,-151.0,5e-05,2]
[422001400,1778441432000,-159.496814,5.105e-05,2]
[422001402,1778441432000,-159.496814,5.552e-05,2]
[422001406,1778441432000,-159.496814,6.447e-05,2]
[422001404,1778441432000,-159.496814,6e-05,2]
[422001417,1778441432000,-508.63737484,8.577e-05,2]
[422001411,1778441432000,-159.496814,7.342e-05,2]
[422001408,1778441432000,-441.31772229,6.577e-05,2]
[422001413,1778441432000,-159.496814,7.789e-05,2]
[422001465,1778441432000,-476.04006851,0.0001,2]
[422001415,1778441432000,-159.496814,8.237e-05,2]
[422001419,1778441432000,-159.496814,8.684e-05,2]
[422001426,1778441432000,-300.0,8.869e-05,2]
[422001454,1778441432000,-159.496814,9.132e-05,2]
[422001409,1778441432000,-159.496814,6.894e-05,2]
[422001456,1778441432000,-10000.0,9.192e-05,2]
[422001505,1778441432000,-163.7375505,0.00010134,2]
[422001499,1778441432000,-354.24100947,0.00010134,2]
[422001501,1778441432000,-500.0,0.00010134,2]
[422001517,1778441432000,-500.0,0.00010134,2]
[422001515,1778441432000,-500.0,0.00010134,2]
[422001519,1778441432000,-500.0,0.00010134,2]
[422001521,1778441432000,-500.0,0.00010134,2]
[422001524,1778441432000,-500.0,0.00010134,2]
[422001533,1778441432000,-500.0,0.00010134,2]
[422001529,1778441432000,-500.0,0.00010134,2]
[422001527,1778441432000,-500.0,0.00010134,2]
[422001523,1778441432000,-500.0,0.00010134,2]
[422001535,1778441432000,-500.0,0.00010134,2]
[422001537,1778441432000,-500.0,0.00010134,2]
[422001461,1778441432000,-2423.5058258,0.0001,2]
[422001503,1778441432000,-317.50889033,0.00010134,2]
[422001497,1778441432000,-510.59239695,0.00010134,2]
[422001531,1778441432000,-500.0,0.00010134,2]
[422001489,1778441432000,-500.0,0.00010134,2]
[422001495,1778441432000,-500.0,0.00010134,2]
[422001450,1778441432000,-300.0,8.869e-05,2]
[422001467,1778441432000,-440.41335325,0.0001,2]
[422001470,1778441432000,-3992.67818282,0.0001,2]
[422001471,1778441432000,-119362.38034416,0.0001,2]
[422001477,1778441432000,-426.00851866,0.00010134,2]
[422001482,1778441432000,-500.0,0.00010134,2]
[422001475,1778441432000,-100000.0,0.00010133,2]
[422001480,1778441432000,-500.0,0.00010134,2]
[422001491,1778441432000,-500.0,0.00010134,2]
[422001473,1778441432000,-536.14046465,0.00010124,2]
[422001487,1778441432000,-500.0,0.00010134,2]
[422001485,1778441432000,-500.0,0.00010134,2]
[422001484,1778441432000,-647.48195958,0.00010134,2]
[422001478,1778441432000,-500.0,0.00010134,2]
[422001493,1778441432000,-500.0,0.00010134,2]
[422001574,1778441433000,-500.0,0.00010134,2]
[422001564,1778441433000,-204.03421442,0.00010134,2]
[422001566,1778441433000,-500.0,0.00010134,2]
[422001568,1778441433000,-500.0,0.00010134,2]
[422001562,1778441433000,-264.24566853,0.00010134,2]
[422001578,1778441433000,-500.0,0.00010134,2]
[422001560,1778441433000,-500.0,0.00010134,2]
[422001572,1778441433000,-500.0,0.00010134,2]
[422001558,1778441433000,-500.0,0.00010134,2]
[422001545,1778441433000,-500.0,0.00010134,2]
[422001554,1778441433000,-500.0,0.00010134,2]
[422001550,1778441433000,-500.0,0.00010134,2]
[422001556,1778441433000,-500.0,0.00010134,2]
[422001553,1778441433000,-500.0,0.00010134,2]
[422001541,1778441433000,-500.0,0.00010134,2]
[422001546,1778441433000,-500.0,0.00010134,2]
[422001543,1778441433000,-500.0,0.00010134,2]
[422001539,1778441433000,-500.0,0.00010134,2]
[422001570,1778441433000,-500.0,0.00010134,2]
[422001549,1778441433000,-500.0,0.00010134,2]
[422001579,1778441433000,-500.0,0.00010134,2]
[422001592,1778441433000,-843.23799171,0.00010134,2]
[422001581,1778441433000,-500.0,0.00010134,2]
[422001603,1778441433000,-51345.11566138,0.00010135,2]
[422001597,1778441433000,-79741.15944094,0.00010135,2]
[422001602,1778441433000,-6329.51878425,0.00010135,2]
[422001576,1778441433000,-500.0,0.00010134,2]
[422001598,1778441433000,-43021.1405261,0.00010135,2]
[422001600,1778441433000,-2347.97246076,0.00010135,2]
[422001601,1778441433000,-2994.07694886,0.00010135,2]
[422001595,1778441433000,-843.23799171,0.00010134,2]
[422001596,1778441433000,-843.23799171,0.00010134,2]
[422001594,1778441433000,-843.23799171,0.00010134,2]
[422001599,1778441433000,-4866.84819384,0.00010135,2]
[422001589,1778441433000,-843.23799171,0.00010134,2]
[422001588,1778441433000,-843.23799171,0.00010134,2]
[422001590,1778441433000,-843.23799171,0.00010134,2]
[422001586,1778441433000,-500.0,0.00010134,2]
[422001591,1778441433000,-843.23799171,0.00010134,2]
[422001587,1778441433000,-500.0,0.00010134,2]
[422001585,1778441433000,-500.0,0.00010134,2]
[422001583,1778441433000,-500.0,0.00010134,2]
[422001593,1778441433000,-843.23799171,0.00010134,2]
[422001666,1778441438000,-262.26,0.00010384,2]
[422001668,1778441438000,-265.83,0.00010389,2]
[422001664,1778441438000,-159.79,0.00010375,2]
[422001662,1778441438000,-159.5,0.00010357,2]
[422001660,1778441438000,-159.27,0.00010348,2]
[422001650,1778441438000,-160.0,0.00010209,2]
[422001654,1778441438000,-160.0,0.00010217,2]
[422001646,1778441438000,-32814.11972174,0.00010135,2]
[422001658,1778441438000,-720.0,0.00010312,2]
[422001648,1778441438000,-117406.5775563,0.00010135,2]
[422001652,1778441438000,-160.0,0.00010209,2]
[422001628,1778441438000,-2443.83798997,0.00010135,2]
[422001656,1778441438000,-161.61126227,0.00010217,2]
[422001674,1778441438000,-283.23,0.00010417,2]
[422001686,1778441438000,-600.0,0.00010475,2]
[422001670,1778441438000,-160.67,0.00010399,2]
[422001678,1778441438000,-162.61,0.0001043,2]
[422001695,1778441438000,-575.95702739,0.00010577,2]
[422001693,1778441438000,-6306.40248728,0.00010541,2]
[422001692,1778441438000,-587.0,0.00010521,2]
[422001697,1778441438000,-7586.55402571,0.00010641,2]
[422001690,1778441438000,-308.09,0.00010475,2]
[422001699,1778441438000,-7905.88761578,0.00010741,2]
[422001701,1778441438000,-8866.70556414,0.00010841,2]
[422001672,1778441438000,-269.67,0.00010401,2]
[422001680,1778441438000,-289.88,0.00010435,2]
[422001682,1778441438000,-386.83520133,0.00010441,2]
[422001684,1778441438000,-295.07,0.00010457,2]
[422001676,1778441438000,-161.66,0.00010428,2]
[422001688,1778441438000,-321.54,0.00010475,2]
[422001784,1778441439000,-500.0,0.00010958,2]
[422001793,1778441439000,-954.55,0.00010958,2]
[422001782,1778441439000,-500.0,0.00010958,2]
[422001780,1778441439000,-500.0,0.00010958,2]
[422001778,1778441439000,-500.0,0.00010958,2]
[422001761,1778441439000,-500.0,0.00010958,2]
[422001757,1778441439000,-712.39,0.00010958,2]
[422001765,1778441439000,-500.0,0.00010958,2]
[422001763,1778441439000,-500.0,0.00010958,2]
[422001775,1778441439000,-500.0,0.00010958,2]
[422001776,1778441439000,-500.0,0.00010958,2]
[422001795,1778441439000,-500.0,0.00010958,2]
[422001767,1778441439000,-627.61,0.00010958,2]
[422001797,1778441439000,-500.0,0.00010958,2]
[422001790,1778441439000,-900.0,0.00010958,2]
[422001786,1778441439000,-500.0,0.00010958,2]
[422001792,1778441439000,-500.0,0.00010958,2]
[422001803,1778441439000,-500.0,0.00010958,2]
[422001799,1778441439000,-913.59,0.00010958,2]
[422001788,1778441439000,-500.0,0.00010958,2]
[422001773,1778441439000,-500.0,0.00010958,2]
[422001805,1778441439000,-428.68344641,0.00010958,2]
[422001807,1778441439000,-500.0,0.00010958,2]
[422001809,1778441439000,-500.0,0.00010958,2]
[422001813,1778441439000,-1991.95,0.00010958,2]
[422001811,1778441439000,-742.86,0.00010958,2]
[422001821,1778441439000,-500.0,0.00010958,2]
[422001825,1778441439000,-500.0,0.00010958,2]
[422001827,1778441439000,-500.0,0.00010958,2]
[422001801,1778441439000,-675.38,0.00010958,2]
[422001759,1778441439000,-1052.69,0.00010958,2]
[422001744,1778441439000,-2907.1619,0.00010958,2]
[422001769,1778441439000,-500.0,0.00010958,2]
[422001823,1778441439000,-500.0,0.00010958,2]
[422001702,1778441439000,-500.0,0.00010851,2]
[422001706,1778441439000,-9883.57408935,0.00010941,2]
[422001705,1778441439000,-211.64805044,0.00010879,2]
[422001719,1778441439000,-780.77591825,0.00010957,2]
[422001721,1778441439000,-780.77591825,0.00010957,2]
[422001725,1778441439000,-780.77591825,0.00010957,2]
[422001723,1778441439000,-780.77591825,0.00010957,2]
[422001708,1778441439000,-155.0,0.00010957,2]
[422001710,1778441439000,-780.77591825,0.00010957,2]
[422001727,1778441439000,-780.77591825,0.00010957,2]
[422001728,1778441439000,-780.77591825,0.00010957,2]
[422001730,1778441439000,-780.77591825,0.00010957,2]
[422001715,1778441439000,-780.77591825,0.00010957,2]
[422001712,1778441439000,-780.77591825,0.00010957,2]
[422001717,1778441439000,-780.77591825,0.00010957,2]
[422001714,1778441439000,-780.77591825,0.00010957,2]
[422001732,1778441439000,-780.77591825,0.00010957,2]
[422001734,1778441439000,-780.77591825,0.00010957,2]
[422001736,1778441439000,-780.77591825,0.00010957,2]
[422001740,1778441439000,-780.77591825,0.00010957,2]
[422001742,1778441439000,-780.77591825,0.00010957,2]
[422001738,1778441439000,-780.77591825,0.00010957,2]
[422001750,1778441439000,-500.0,0.00010958,2]
[422001746,1778441439000,-500.0,0.00010958,2]
[422001752,1778441439000,-500.0,0.00010958,2]
[422001748,1778441439000,-500.0,0.00010958,2]
[422001754,1778441439000,-500.0,0.00010958,2]
[422001755,1778441439000,-500.0,0.00010958,2]
[422001771,1778441439000,-347.73009958,0.00010958,2]
[422001817,1778441439000,-500.0,0.00010958,2]
[422001862,1778441439000,-500.0,0.00010958,2]
[422001829,1778441439000,-726.11,0.00010958,2]
[422001898,1778441439000,-1597.16,0.00010958,2]
[422001904,1778441439000,-1827.92,0.00010958,2]
[422001906,1778441439000,-519.33,0.00010958,2]
[422001892,1778441439000,-617.51040136,0.00010958,2]
[422001896,1778441439000,-2725.64,0.00010958,2]
[422001894,1778441439000,-2077.94,0.00010958,2]
[422001908,1778441439000,-1921.56,0.00010958,2]
[422001910,1778441439000,-500.0,0.00010958,2]
[422001912,1778441439000,-500.0,0.00010958,2]
[422001914,1778441439000,-1356.59,0.00010958,2]
[422001916,1778441439000,-568.84,0.00010958,2]
[422001918,1778441439000,-500.0,0.00010958,2]
[422001920,1778441439000,-500.0,0.00010958,2]
[422001930,1778441439000,-1871.54,0.00010958,2]
[422001932,1778441439000,-291.66429429,0.00010958,2]
[422001926,1778441439000,-500.0,0.00010958,2]
[422001928,1778441439000,-1751.17,0.00010958,2]
[422001922,1778441439000,-3870.61,0.00010958,2]
[422001934,1778441439000,-5252.1,0.00010958,2]
[422001924,1778441439000,-1744.48,0.00010958,2]
[422001938,1778441439000,-886.64,0.00010958,2]
[422001936,1778441439000,-500.0,0.00010958,2]
[422001944,1778441439000,-4197.19,0.00010958,2]
[422001942,1778441439000,-640.96,0.00010958,2]
[422001954,1778441439000,-1371.0,0.00010958,2]
[422001950,1778441439000,-566.73,0.00010958,2]
[422001952,1778441439000,-500.0,0.00010958,2]
[422001946,1778441439000,-4009.78,0.00010958,2]
[422001940,1778441439000,-500.0,0.00010958,2]
[422001902,1778441439000,-500.0,0.00010958,2]
[422001890,1778441439000,-500.0,0.00010958,2]
[422001900,1778441439000,-1218.29,0.00010958,2]
[422001888,1778441439000,-500.0,0.00010958,2]
[422001831,1778441439000,-922.33,0.00010958,2]
[422001833,1778441439000,-500.0,0.00010958,2]
[422001815,1778441439000,-796.32,0.00010958,2]
[422001837,1778441439000,-917.12,0.00010958,2]
[422001839,1778441439000,-1933.36,0.00010958,2]
[422001847,1778441439000,-500.0,0.00010958,2]
[422001835,1778441439000,-500.0,0.00010958,2]
[422001841,1778441439000,-500.0,0.00010958,2]
[422001845,1778441439000,-500.0,0.00010958,2]
[422001843,1778441439000,-500.0,0.00010958,2]
[422001848,1778441439000,-500.0,0.00010958,2]
[422001851,1778441439000,-1169.71,0.00010958,2]
[422001853,1778441439000,-1086.71,0.00010958,2]
[422001861,1778441439000,-564.86,0.00010958,2]
[422001819,1778441439000,-500.0,0.00010958,2]
[422001859,1778441439000,-2019.1,0.00010958,2]
[422001857,1778441439000,-500.0,0.00010958,2]
[422001864,1778441439000,-500.0,0.00010958,2]
[422001880,1778441439000,-5967.11,0.00010958,2]
[422001874,1778441439000,-500.0,0.00010958,2]
[422001948,1778441439000,-500.0,0.00010958,2]
[422001876,1778441439000,-1240.68,0.00010958,2]
[422001868,1778441439000,-561.3,0.00010958,2]
[422001878,1778441439000,-500.0,0.00010958,2]
[422001866,1778441439000,-500.0,0.00010958,2]
[422001870,1778441439000,-500.0,0.00010958,2]
[422001882,1778441439000,-500.0,0.00010958,2]
[422001872,1778441439000,-500.0,0.00010958,2]
[422001886,1778441439000,-786.18,0.00010958,2]
[422001884,1778441439000,-5362.09,0.00010958,2]
[422001855,1778441439000,-500.0,0.00010958,2]
[422001956,1778441440000,-500.0,0.00010958,2]
[422001958,1778441440000,-2346.14146571,0.00010958,2]
[422001960,1778441440000,-22531.75,0.00010958,2]
[422002301,1778441443000,-644.0,0.00010848,2]
[422002330,1778441446000,-2374.232,0.00010848,2]
[422002796,1778442638000,-1031.5095495,8.509e-05,2]
[422002794,1778442638000,-176.83143619,8.337e-05,2]
[422002795,1778442638000,-219.89901431,8.337e-05,2]
[422002846,1778442639000,-6215.98174131,9.963e-05,2]
[422002848,1778442639000,-161.61126227,0.0001009,2]
[422002837,1778442639000,-300.0,9.513e-05,2]
[422002832,1778442639000,-300.0,9.513e-05,2]
[422002840,1778442639000,-600.0,9.513e-05,2]
[422002839,1778442639000,-300.0,9.513e-05,2]
[422002841,1778442639000,-5124.22805777,9.563e-05,2]
[422002843,1778442639000,-420.0,9.748e-05,2]
[422002842,1778442639000,-5211.3216316,9.663e-05,2]
[422002836,1778442639000,-300.0,9.513e-05,2]
[422002838,1778442639000,-300.0,9.513e-05,2]
[422002844,1778442639000,-5671.83323955,9.763e-05,2]
[422002849,1778442639000,-160.0,0.0001009,2]
[422002851,1778442639000,-500.0,0.00010133,2]
[422002854,1778442639000,-500.0,0.00010133,2]
[422002850,1778442639000,-160.0,0.0001009,2]
[422002853,1778442639000,-500.0,0.00010133,2]
[422002845,1778442639000,-5763.8721604,9.863e-05,2]
[422002852,1778442639000,-500.0,0.00010133,2]
[422002855,1778442639000,-278.18109774,0.00010133,2]
[422002856,1778442639000,-500.0,0.00010133,2]
[422002860,1778442639000,-576.40722304,0.00010133,2]
[422002862,1778442639000,-7048.5180871,0.00010274,2]
[422002861,1778442639000,-34737.93490739,0.00010134,2]
[422002857,1778442639000,-500.0,0.00010133,2]
[422002847,1778442639000,-160.0,0.0001009,2]
[422002834,1778442639000,-300.0,9.513e-05,2]
[422002831,1778442639000,-300.0,9.513e-05,2]
[422002835,1778442639000,-300.0,9.513e-05,2]
[422002797,1778442639000,-1947.02828019,8.509e-05,2]
[422002798,1778442639000,-2021.46217031,8.509e-05,2]
[422002801,1778442639000,-1200.0,8.762e-05,2]
[422002799,1778442639000,-350.44081616,8.629e-05,2]
[422002806,1778442639000,-2690.10852933,8.963e-05,2]
[422002802,1778442639000,-1766.61028636,8.763e-05,2]
[422002808,1778442639000,-3488.96595898,9.063e-05,2]
[422002809,1778442639000,-634.2409744,9.123e-05,2]
[422002800,1778442639000,-905.43245005,8.663e-05,2]
[422002803,1778442639000,-300.0,8.862e-05,2]
[422002805,1778442639000,-2627.78812267,8.863e-05,2]
[422002810,1778442639000,-3492.91618028,9.163e-05,2]
[422002833,1778442639000,-300.0,9.513e-05,2]
[422002807,1778442639000,-259.03702527,8.963e-05,2]
[422002812,1778442639000,-468.41838105,9.327e-05,2]
[422002822,1778442639000,-300.0,9.513e-05,2]
[422002811,1778442639000,-4036.68680611,9.263e-05,2]
[422002828,1778442639000,-300.0,9.513e-05,2]
[422002816,1778442639000,-4215.76542948,9.327e-05,2]
[422002820,1778442639000,-4580.45743194,9.463e-05,2]
[422002826,1778442639000,-300.0,9.513e-05,2]
[422002814,1778442639000,-1873.67352421,9.327e-05,2]
[422002824,1778442639000,-300.0,9.513e-05,2]
[422002864,1778442639000,-2215.0,0.00010413,2]
[422002830,1778442639000,-300.0,9.513e-05,2]
[422002829,1778442639000,-300.0,9.513e-05,2]
[422002804,1778442639000,-300.0,8.862e-05,2]
[422002863,1778442639000,-1411.0,0.00010413,2]
[422002818,1778442639000,-7487.19940276,9.327e-05,2]
[422002858,1778442639000,-533.56297446,0.00010133,2]
[422002897,1778442639000,-792.79854335,0.00010957,2]
[422002896,1778442639000,-792.79854335,0.00010957,2]
[422002907,1778442639000,-500.0,0.00010958,2]
[422002908,1778442639000,-500.0,0.00010958,2]
[422002905,1778442639000,-811.93505993,0.00010957,2]
[422002900,1778442639000,-792.79854335,0.00010957,2]
[422002903,1778442639000,-792.79854335,0.00010957,2]
[422002906,1778442639000,-2786.0186,0.00010958,2]
[422002899,1778442639000,-792.79854335,0.00010957,2]
[422002898,1778442639000,-792.79854335,0.00010957,2]
[422002904,1778442639000,-811.93505993,0.00010957,2]
[422002902,1778442639000,-792.79854335,0.00010957,2]
[422002894,1778442639000,-792.79854335,0.00010957,2]
[422002909,1778442639000,-500.0,0.00010958,2]
[422002911,1778442639000,-500.0,0.00010958,2]
[422002912,1778442639000,-500.0,0.00010958,2]
[422002914,1778442639000,-711.91,0.00010958,2]
[422002910,1778442639000,-862.5,0.00010958,2]
[422002915,1778442639000,-500.0,0.00010958,2]
[422002918,1778442639000,-878.91,0.00010958,2]
[422002919,1778442639000,-500.0,0.00010958,2]
[422002920,1778442639000,-500.0,0.00010958,2]
[422002916,1778442639000,-500.0,0.00010958,2]
[422002917,1778442639000,-500.0,0.00010958,2]
[422002921,1778442639000,-1041.43,0.00010958,2]
[422002865,1778442639000,-647.0,0.00010413,2]
[422002913,1778442639000,-500.0,0.00010958,2]
[422002895,1778442639000,-792.79854335,0.00010957,2]
[422002901,1778442639000,-792.79854335,0.00010957,2]
[422002887,1778442639000,-773.46199352,0.00010957,2]
[422002893,1778442639000,-773.46199352,0.00010957,2]
[422002866,1778442639000,-150.494,0.00010413,2]
[422002859,1778442639000,-500.0,0.00010133,2]
[422002868,1778442639000,-7250.58515059,0.00010604,2]
[422002867,1778442639000,-720.0,0.00010464,2]
[422002870,1778442639000,-587.0,0.00010723,2]
[422002880,1778442639000,-773.46199352,0.00010957,2]
[422002881,1778442639000,-773.46199352,0.00010957,2]
[422002871,1778442639000,-705.263,0.00010848,2]
[422002872,1778442639000,-268.85143366,0.00010851,2]
[422002873,1778442639000,-1322.98034576,0.00010856,2]
[422002876,1778442639000,-29440.0,0.00010956,2]
[422002875,1778442639000,-160.84213938,0.00010926,2]
[422002878,1778442639000,-773.46199352,0.00010957,2]
[422002869,1778442639000,-413.52016306,0.00010629,2]
[422002874,1778442639000,-160.84213941,0.00010857,2]
[422002891,1778442639000,-773.46199352,0.00010957,2]
[422002882,1778442639000,-773.46199352,0.00010957,2]
[422002892,1778442639000,-773.46199352,0.00010957,2]
[422002883,1778442639000,-773.46199352,0.00010957,2]
[422002890,1778442639000,-773.46199352,0.00010957,2]
[422002884,1778442639000,-773.46199352,0.00010957,2]
[422002889,1778442639000,-773.46199352,0.00010957,2]
[422002885,1778442639000,-773.46199352,0.00010957,2]
[422002886,1778442639000,-773.46199352,0.00010957,2]
[422002877,1778442639000,-415.95522764,0.00010957,2]
[422002879,1778442639000,-773.46199352,0.00010957,2]
[422002888,1778442639000,-773.46199352,0.00010957,2]
[422002968,1778442640000,-5138.67,0.00010958,2]
[422002967,1778442640000,-1188.99,0.00010958,2]
[422002965,1778442640000,-500.0,0.00010958,2]
[422002964,1778442640000,-500.0,0.00010958,2]
[422002963,1778442640000,-537.92,0.00010958,2]
[422002962,1778442640000,-436.65300971,0.00010958,2]
[422002950,1778442640000,-500.0,0.00010958,2]
[422002955,1778442640000,-1852.81,0.00010958,2]
[422002954,1778442640000,-500.0,0.00010958,2]
[422002956,1778442640000,-500.0,0.00010958,2]
[422002952,1778442640000,-883.9,0.00010958,2]
[422002951,1778442640000,-614.25,0.00010958,2]
[422002961,1778442640000,-1934.97,0.00010958,2]
[422002966,1778442640000,-500.0,0.00010958,2]
[422002974,1778442640000,-500.0,0.00010958,2]
[422002970,1778442640000,-2826.59,0.00010958,2]
[422002973,1778442640000,-753.43,0.00010958,2]
[422002972,1778442640000,-500.0,0.00010958,2]
[422002983,1778442640000,-500.0,0.00010958,2]
[422002985,1778442640000,-500.0,0.00010958,2]
[422002984,1778442640000,-500.0,0.00010958,2]
[422002986,1778442640000,-500.0,0.00010958,2]
[422002975,1778442640000,-500.0,0.00010958,2]
[422002980,1778442640000,-1841.5,0.00010958,2]
[422002977,1778442640000,-500.0,0.00010958,2]
[422002982,1778442640000,-545.14,0.00010958,2]
[422002976,1778442640000,-1530.61,0.00010958,2]
[422002958,1778442640000,-1120.97,0.00010958,2]
[422002971,1778442640000,-500.0,0.00010958,2]
[422002957,1778442640000,-500.0,0.00010958,2]
[422002923,1778442640000,-500.0,0.00010958,2]
[422002960,1778442640000,-500.0,0.00010958,2]
[422002933,1778442640000,-465.87626105,0.00010958,2]
[422002978,1778442640000,-2612.07,0.00010958,2]
[422002934,1778442640000,-500.0,0.00010958,2]
[422002922,1778442640000,-541.32,0.00010958,2]
[422002924,1778442640000,-500.0,0.00010958,2]
[422002925,1778442640000,-500.0,0.00010958,2]
[422002931,1778442640000,-647.24,0.00010958,2]
[422002927,1778442640000,-500.0,0.00010958,2]
[422002928,1778442640000,-500.0,0.00010958,2]
[422002926,1778442640000,-500.0,0.00010958,2]
[422002932,1778442640000,-500.0,0.00010958,2]
[422002929,1778442640000,-500.0,0.00010958,2]
[422002930,1778442640000,-500.0,0.00010958,2]
[422002936,1778442640000,-500.0,0.00010958,2]
[422002947,1778442640000,-500.0,0.00010958,2]
[422002946,1778442640000,-500.0,0.00010958,2]
[422002939,1778442640000,-914.77,0.00010958,2]
[422002941,1778442640000,-500.0,0.00010958,2]
[422002935,1778442640000,-500.0,0.00010958,2]
[422002940,1778442640000,-875.52,0.00010958,2]
[422002942,1778442640000,-1908.95,0.00010958,2]
[422002938,1778442640000,-500.0,0.00010958,2]
[422002943,1778442640000,-500.0,0.00010958,2]
[422002937,1778442640000,-500.0,0.00010958,2]
[422002945,1778442640000,-763.14,0.00010958,2]
[422002944,1778442640000,-500.0,0.00010958,2]
[422002949,1778442640000,-500.0,0.00010958,2]
[422002959,1778442640000,-500.0,0.00010958,2]
[422002948,1778442640000,-500.0,0.00010958,2]
[422002953,1778442640000,-695.86,0.00010958,2]
[422002981,1778442640000,-1991.36,0.00010958,2]
[422002979,1778442640000,-1751.76,0.00010958,2]
[422002998,1778442640000,-500.0,0.00010958,2]
[422003016,1778442640000,-500.0,0.00010958,2]
[422003020,1778442640000,-627.18,0.00010958,2]
[422003023,1778442640000,-500.0,0.00010958,2]
[422003019,1778442640000,-1574.37,0.00010958,2]
[422003022,1778442640000,-1467.8,0.00010958,2]
[422003027,1778442640000,-500.0,0.00010958,2]
[422003030,1778442640000,-500.0,0.00010958,2]
[422003029,1778442640000,-1894.03,0.00010958,2]
[422003031,1778442640000,-4139.42,0.00010958,2]
[422003028,1778442640000,-1122.63,0.00010958,2]
[422003039,1778442640000,-160.84213938,0.00010995,2]
[422003033,1778442640000,-500.0,0.00010958,2]
[422003037,1778442640000,-2310.42,0.00010958,2]
[422003040,1778442640000,-160.84213938,0.00011063,2]
[422003034,1778442640000,-601.46,0.00010958,2]
[422003038,1778442640000,-5718.48,0.00010958,2]
[422003035,1778442640000,-1668.08,0.00010958,2]
[422003036,1778442640000,-1896.35,0.00010958,2]
[422003042,1778442640000,-456.3760811,0.00011141,2]
[422003043,1778442640000,-445.202766,0.0001117,2]
[422003041,1778442640000,-160.84213938,0.00011132,2]
[422003046,1778442640000,-325.7824685,0.00011179,2]
[422003044,1778442640000,-537.6845,0.0001117,2]
[422003045,1778442640000,-443.1266878,0.00011179,2]
[422003047,1778442640000,-557.5788265,0.00011225,2]
[422003050,1778442640000,-500.0,0.00011232,2]
[422003051,1778442640000,-500.0,0.00011232,2]
[422002988,1778442640000,-500.0,0.00010958,2]
[422003049,1778442640000,-500.0,0.00011232,2]
[422003021,1778442640000,-500.0,0.00010958,2]
[422003018,1778442640000,-1020.11,0.00010958,2]
[422003048,1778442640000,-2907.1619,0.00011232,2]
[422003017,1778442640000,-500.0,0.00010958,2]
[422002989,1778442640000,-500.0,0.00010958,2]
[422002997,1778442640000,-500.0,0.00010958,2]
[422002995,1778442640000,-1793.56,0.00010958,2]
[422002992,1778442640000,-1300.06,0.00010958,2]
[422002990,1778442640000,-3709.34,0.00010958,2]
[422002994,1778442640000,-1671.79,0.00010958,2]
[422002987,1778442640000,-500.0,0.00010958,2]
[422002999,1778442640000,-5033.26,0.00010958,2]
[422003015,1778442640000,-2445.03,0.00010958,2]
[422002993,1778442640000,-1678.21,0.00010958,2]
[422002996,1778442640000,-849.69,0.00010958,2]
[422003000,1778442640000,-682.71,0.00010958,2]
[422003001,1778442640000,-1313.87,0.00010958,2]
[422003009,1778442640000,-27809.54,0.00010958,2]
[422002991,1778442640000,-500.0,0.00010958,2]
[422003012,1778442640000,-500.0,0.00010958,2]
[422003010,1778442640000,-1197.7,0.00010958,2]